fUSD/lending_fUSD_20241030
["ID","MTS","AMOUNT","RATE_DAILY","PERIOD"]
[341057800,1730308285761,-845.34,0.00042998,14]
[341057801,1730308285770,-845.34,0.00042998,14]
[341057802,1730308285778,-845.34,0.00042998,14]
[341057803,1730308285787,-845.34,0.00042998,14]
[341057804,1730308285796,-845.38281992,0.00042998,14]
[341057805,1730308285805,-500.0,0.00042998,14]
[341057806,1730308285815,-670.37,0.00042998,14]
[341057807,1730308285824,-794.07,0.00042998,14]
[341057808,1730308285834,-1298.55,0.00042998,14]
[341057809,1730308285843,-787.24,0.00042998,14]
[341057810,1730308285852,-500.0,0.00042998,14]
[341057811,1730308285861,-971.52,0.00042998,14]
[341057812,1730308285871,-500.0,0.00042998,14]
[341057813,1730308285880,-500.0,0.00042998,14]
[341057814,1730308285890,-500.0,0.00042998,14]
[341057815,1730308285899,-500.0,0.00042998,14]
[341057816,1730308285909,-303.9088029,0.00042998,14]
[341057817,1730308285918,-1461.8,0.00042998,14]
[341057818,1730308285928,-969.18,0.00042998,14]
[341057819,1730308285938,-969.18,0.00042998,14]
[341057820,1730308285947,-969.18,0.00042998,14]
[341057821,1730308285957,-969.18,0.00042998,14]
[341057822,1730308285967,-969.18,0.00042998,14]
[341057823,1730308285978,-969.18,0.00042998,14]
[341057824,1730308285989,-969.32332429,0.00042998,14]
[341057825,1730308285998,-286.65120937,0.00042998,14]
[341057826,1730308286008,-1666.66,0.00042998,14]
[341057827,1730308286017,-835.05,0.00042998,14]
[341057828,1730308286027,-835.05,0.00042998,14]
[341057829,1730308286124,-835.05,0.00042998,14]
[341057830,1730308286133,-835.05,0.00042998,14]
[341057831,1730308286143,-835.05,0.00042998,14]
[341057832,1730308286152,-835.22,0.00042998,14]
[341057833,1730308286161,-733.58,0.00042998,14]
[341057834,1730308286172,-500.0,0.00042998,14]
[341057835,1730308286183,-500.0,0.00042998,14]
[341057836,1730308286193,-500.0,0.00042998,14]
[341057837,1730308286202,-338.21410616,0.00042998,14]
[341057838,1730308286211,-572.16,0.00042998,14]
[341057839,1730308286221,-572.16,0.00042998,14]
[341057840,1730308286230,-572.16,0.00042998,14]
[341057841,1730308286240,-500.0,0.00042998,14]
[341057842,1730308286249,-500.0,0.00042998,14]
[341057843,1730308286258,-500.0,0.00042998,14]
[341057844,1730308286267,-715.57,0.00042998,14]
[341057845,1730308286277,-632.73809639,0.00042998,14]
[341057846,1730308286286,-975.99,0.00042998,14]
[341057847,1730308286295,-975.99,0.00042998,14]
[341057848,1730308286305,-975.99,0.00042998,14]
[341057849,1730308286314,-975.99,0.00042998,14]
[341057850,1730308286324,-975.99,0.00042998,14]
[341057851,1730308286333,-976.04884597,0.00042998,14]
[341057852,1730308286342,-1272.21,0.00042998,14]
[341057853,1730308286351,-1272.21,0.00042998,14]
[341057854,1730308286360,-1272.21,0.00042998,14]
[341057855,1730308286369,-1272.21,0.00042998,14]
[341057856,1730308286378,-1272.21,0.00042998,14]
[341057857,1730308286387,-1272.43415266,0.00042998,14]
[341057858,1730308286396,-1155.51,0.00042998,14]
[341057859,1730308286409,-1155.51,0.00042998,14]
[341057860,1730308286418,-1155.51,0.00042998,14]
[341057861,1730308286429,-151.0,0.00042998,14]
[341057862,1730308286438,-751.97,0.00042998,14]
[341057863,1730308286448,-1599.66,0.00042998,14]
[341057864,1730308286457,-1599.66,0.00042998,14]
[341057865,1730308286466,-1599.66,0.00042998,14]
[341057866,1730308286476,-704.84,0.00042998,14]
[341057867,1730308286485,-704.84,0.00042998,14]
[341057868,1730308286494,-704.84,0.00042998,14]
[341057869,1730308286503,-704.84,0.00042998,14]
[341057870,1730308286512,-704.84,0.00042998,14]
[341057871,1730308286521,-704.92,0.00042998,14]
[341057872,1730308286531,-1069.68,0.00042998,14]
[341057873,1730308286540,-1069.68,0.00042998,14]
[341057874,1730308286549,-1069.68,0.00042998,14]
[341057875,1730308286558,-513.46,0.00042998,14]
[341057876,1730308286567,-1025.2,0.00042998,14]
[341057877,1730308286576,-513.46,0.00042998,14]
[341057878,1730308286585,-513.46,0.00042998,14]
[341057879,1730308286594,-500.0,0.00042998,14]
[341057880,1730308286603,-264.19893805,0.00042998,14]
[341057881,1730308286612,-1459.31,0.00042998,7]
[341057882,1730308286621,-1459.31,0.00042998,7]
[341057883,1730308286630,-1459.31,0.00042998,7]
[341057884,1730308286639,-1459.31,0.00042998,7]
[341057885,1730308286647,-1459.31,0.00042998,7]
[341057886,1730308286656,-1459.31,0.00042998,7]
[341057887,1730308286665,-2973.95,0.00042998,14]
[341057888,1730308286675,-1459.32365692,0.00042998,7]
[341057889,1730308286684,-2973.95,0.00042998,14]
[341057890,1730308286693,-2973.95,0.00042998,14]
[341057891,1730308286703,-641.47,0.00042998,14]
[341057892,1730308286712,-641.47,0.00042998,14]
[341057893,1730308286721,-641.47,0.00042998,14]
[341057894,1730308286732,-500.0,0.00042998,14]
[341057895,1730308286744,-500.0,0.00042998,14]
[341057896,1730308286754,-500.0,0.00042998,14]
[341057897,1730308286764,-500.0,0.00042998,14]
[341057898,1730308286774,-494.78736647,0.00042998,14]
[341057899,1730308286783,-581.05,0.00042998,14]
[341057900,1730308286793,-1139.46,0.00042998,14]
[341057901,1730308286803,-1139.46,0.00042998,14]
[341057902,1730308286812,-1139.46,0.00042998,14]
[341057903,1730308286822,-1139.46,0.00042998,14]
[341057904,1730308286832,-1139.46,0.00042998,14]
[341057905,1730308286843,-1139.64,0.00042998,14]
[341057906,1730308286853,-581.87,0.00042998,14]
[341057907,1730308286864,-581.87,0.00042998,14]
[341057908,1730308286875,-581.87,0.00042998,14]
[341057909,1730308286887,-581.87,0.00042998,14]
[341057910,1730308286897,-581.87,0.00042998,14]
[341057911,1730308286908,-581.87,0.00042998,14]
[341057912,1730308286918,-582.04452546,0.00042998,14]
[341057913,1730308286931,-537.01,0.00042998,14]
[341057914,1730308286942,-537.01,0.00042998,14]
[341057915,1730308286953,-537.01,0.00042998,14]
[341057916,1730308286962,-500.0,0.00042998,14]
[341057917,1730308286973,-500.0,0.00042998,14]
[341057918,1730308286983,-500.0,0.00042998,14]
[341057919,1730308286993,-500.0,0.00042998,14]
[341057920,1730308287003,-500.0,0.00042998,14]
[341057921,1730308287013,-500.0,0.00042998,14]
[341057922,1730308287022,-187.20205818,0.00042998,14]
[341057923,1730308287031,-874.87,0.00042998,14]
[341057924,1730308287040,-874.87,0.00042998,14]
[341057925,1730308287049,-874.87,0.00042998,14]
[341057926,1730308287059,-874.87,0.00042998,14]
[341057927,1730308287068,-874.87,0.00042998,14]
[341057928,1730308287078,-874.87,0.00042998,14]
[341057929,1730308287087,-875.09374653,0.00042998,14]
[341057930,1730308287097,-909.2,0.00042998,14]
[341057931,1730308287106,-909.2,0.00042998,14]
[341057932,1730308287115,-909.2,0.00042998,14]
[341057933,1730308287125,-909.2,0.00042998,14]
[341057934,1730308287135,-909.2,0.00042998,14]
[341057935,1730308287144,-909.29433327,0.00042998,14]
[341057936,1730308287155,-903.66,0.00042998,14]
[341057937,1730308287165,-903.66,0.00042998,14]
[341057938,1730308287175,-903.66,0.00042998,14]
[341057939,1730308287185,-500.0,0.00042998,14]
[341057940,1730308287194,-903.66,0.00042998,14]
[341057941,1730308287204,-903.66,0.00042998,14]
[341057942,1730308287214,-903.66,0.00042998,14]
[341057943,1730308287223,-903.66263301,0.00042998,14]
[341057944,1730308287233,-646.39,0.00042998,14]
[341057945,1730308287242,-2792.23,0.00042998,14]
[341057946,1730308287251,-2792.23,0.00042998,14]
[341057947,1730308287261,-2792.23,0.00042998,14]
[341057948,1730308287270,-2792.23,0.00042998,14]
[341057949,1730308287279,-2792.23,0.00042998,14]
[341057950,1730308287289,-2792.3466,0.00042998,14]
[341057951,1730308287298,-542.52,0.00042998,14]
[341057952,1730308287307,-542.52,0.00042998,14]
[341057953,1730308287316,-542.52,0.00042998,14]
[341057954,1730308287325,-542.52,0.00042998,14]
[341057955,1730308287334,-542.52,0.00042998,14]
[341057956,1730308287343,-542.52,0.00042998,14]
[341057957,1730308287352,-542.54915363,0.00042998,14]
[341057958,1730308287361,-746.26,0.00042998,14]
[341057959,1730308287369,-1136.58,0.00042998,14]
[341057960,1730308287378,-1136.58,0.00042998,14]
[341057961,1730308287387,-1136.58,0.00042998,14]
[341057962,1730308287397,-1136.58,0.00042998,14]
[341057963,1730308287410,-1136.58,0.00042998,14]
[341057964,1730308287419,-1136.58,0.00042998,14]
[341057965,1730308287429,-1136.79992168,0.00042998,14]
[341057966,1730308287438,-603.68,0.00042998,14]
[341057967,1730308287448,-603.68,0.00042998,14]
[341057968,1730308287457,-603.68,0.00042998,14]
[341057969,1730308287466,-603.68,0.00042998,14]
[341057970,1730308287475,-603.68,0.00042998,14]
[341057971,1730308287487,-603.68,0.00042998,14]
[341057972,1730308287496,-603.68143528,0.00042998,14]
[341057973,1730308287505,-1558.05,0.00042998,14]
[341057974,1730308287514,-1558.05,0.00042998,14]
[341057975,1730308287523,-1558.05,0.00042998,14]
[341057976,1730308287532,-500.0,0.00042998,14]
[341057977,1730308287540,-500.0,0.00042998,14]
[341057978,1730308287550,-500.0,0.00042998,14]
[341057979,1730308287560,-500.0,0.00042998,14]
[341057980,1730308287569,-500.0,0.00042998,14]
[341057981,1730308287653,-285.44031684,0.00042998,14]
[341057982,1730308287670,-697.79,0.00042998,14]
[341057983,1730308287680,-752.49,0.00042998,14]
[341057984,1730308287690,-752.49,0.00042998,14]
[341057985,1730308287700,-752.49,0.00042998,14]
[341057986,1730308287711,-500.0,0.00042998,14]
[341057987,1730308287723,-500.0,0.00042998,14]
[341057988,1730308287734,-426.780403,0.00042998,14]
[341057989,1730308287743,-151.0,0.00042999,7]
[341057990,1730308287752,-151.0,0.00042999,7]
[341057991,1730308287761,-151.0,0.00042999,7]
[341057992,1730308287771,-151.0,0.00042999,7]
[341057993,1730308287780,-529.1,0.00042999,14]
[341057994,1730308287789,-529.1,0.00042999,14]
[341057995,1730308287798,-529.1,0.00042999,14]
[341057996,1730308287807,-529.1,0.00042999,14]
[341057997,1730308287818,-529.1,0.00042999,14]
[341057998,1730308287827,-529.1,0.00042999,14]
[341057999,1730308287838,-529.1,0.00042999,14]
[341058000,1730308287848,-529.1,0.00042999,14]
[341058001,1730308287858,-529.1,0.00042999,14]
[341058002,1730308287869,-529.1611379,0.00042999,14]
[341058003,1730308287879,-500.0,0.00042999,14]
[341058004,1730308287891,-500.0,0.00042999,14]
[341058005,1730308287901,-193.27508235,0.00042999,14]
[341058006,1730308287912,-500.0,0.00042999,14]
[341058007,1730308287922,-500.0,0.00042999,14]
[341058008,1730308287931,-500.0,0.00042999,14]
[341058009,1730308287941,-500.0,0.00042999,14]
[341058010,1730308287951,-636.54014893,0.00042999,14]
[341058011,1730308287960,-1427.35,0.00042999,2]
[341058012,1730308287969,-1427.35,0.00042999,2]
[341058013,1730308287978,-1427.35,0.00042999,2]
[341058014,1730308287989,-1427.35,0.00042999,2]
[341058015,1730308287998,-1427.35,0.00042999,2]
[341058016,1730308288009,-1427.35,0.00042999,2]
[341058017,1730308288020,-1427.35,0.00042999,2]
[341058018,1730308288029,-1427.35,0.00042999,2]
[341058019,1730308288039,-1427.35,0.00042999,2]
[341058020,1730308288048,-1427.35,0.00042999,2]
[341058021,1730308288057,-711.26,0.00042999,14]
[341058022,1730308288066,-711.26,0.00042999,14]
[341058023,1730308288075,-711.26,0.00042999,14]
[341058024,1730308288085,-711.26,0.00042999,14]
[341058025,1730308288094,-711.26,0.00042999,14]
[341058026,1730308288103,-711.26,0.00042999,14]
[341058027,1730308288112,-711.26,0.00042999,14]
[341058028,1730308288122,-711.26,0.00042999,14]
[341058029,1730308288131,-711.26,0.00042999,14]
[341058030,1730308288140,-711.45828602,0.00042999,14]
[341058031,1730308288149,-500.0,0.00042999,14]
[341058032,1730308288159,-500.0,0.00042999,14]
[341058033,1730308288169,-500.0,0.00042999,14]
[341058034,1730308288179,-500.0,0.00042999,14]
[341058035,1730308288188,-500.0,0.00042999,14]
[341058036,1730308288197,-500.0,0.00042999,14]
[341058037,1730308288207,-500.0,0.00042999,14]
[341058038,1730308288216,-486.33418535,0.00042999,14]
[341058039,1730308288225,-567.6790091,0.00042999,14]
[341058040,1730308288235,-906.91,0.00042999,14]
[341058041,1730308288245,-906.91,0.00042999,14]
[341058042,1730308288254,-906.91,0.00042999,14]
[341058043,1730308288264,-906.91,0.00042999,14]
[341058044,1730308288273,-906.91,0.00042999,14]
[341058045,1730308288283,-906.91,0.00042999,14]
[341058046,1730308288293,-907.081412,0.00042999,14]
[341058047,1730308288303,-577.08,0.00042999,14]
[341058048,1730308288312,-577.08,0.00042999,14]
[341058049,1730308288322,-577.08,0.00042999,14]
[341058050,1730308288331,-577.08,0.00042999,14]
[341058051,1730308288342,-577.08,0.00042999,14]
[341058052,1730308288353,-577.08,0.00042999,14]
[341058053,1730308288365,-577.08957364,0.00042999,14]
[341058054,1730308288374,-694.24,0.00042999,14]
[341058055,1730308288385,-694.24,0.00042999,14]
[341058056,1730308288394,-694.24,0.00042999,14]
[341058057,1730308288406,-694.24,0.00042999,14]
[341058058,1730308288416,-694.24,0.00042999,14]
[341058059,1730308288425,-694.24,0.00042999,14]
[341058060,1730308288436,-694.36141665,0.00042999,14]
[341058061,1730308288447,-737.42,0.00042999,14]
[341058062,1730308288456,-737.42,0.00042999,14]
[341058063,1730308288467,-737.42,0.00042999,14]
[341058064,1730308288478,-737.42,0.00042999,14]
[341058065,1730308288489,-737.42,0.00042999,14]
[341058066,1730308288499,-737.42,0.00042999,14]
[341058067,1730308288508,-737.53501782,0.00042999,14]
[341058068,1730308288520,-516.25,0.00042999,14]
[341058069,1730308288530,-516.25,0.00042999,14]
[341058070,1730308288540,-516.25,0.00042999,14]
[341058071,1730308288551,-516.25,0.00042999,14]
[341058072,1730308288562,-516.36220297,0.00042999,14]
[341058073,1730308288574,-1017.46,0.00042999,14]
[341058074,1730308288584,-1017.46,0.00042999,14]
[341058075,1730308288594,-1017.46,0.00042999,14]
[341058076,1730308288604,-1017.46,0.00042999,14]
[341058077,1730308288614,-1017.46,0.00042999,14]
[341058078,1730308288624,-1017.46,0.00042999,14]
[341058079,1730308288633,-1017.67846171,0.00042999,14]
[341058080,1730308288643,-801.35,0.00042999,14]
[341058081,1730308288653,-801.35,0.00042999,14]
[341058082,1730308288663,-801.35,0.00042999,14]
[341058083,1730308288672,-801.35,0.00042999,14]
[341058084,1730308288683,-801.35,0.00042999,14]
[341058085,1730308288693,-801.35,0.00042999,14]
[341058086,1730308288703,-801.50597243,0.00042999,14]
[341058087,1730308288713,-229.618148,0.00042999,7]
[341058088,1730308288722,-229.618148,0.00042999,7]
[341058089,1730308288732,-229.618148,0.00042999,7]
[341058090,1730308288743,-229.618148,0.00042999,7]
[341058091,1730308288753,-690.36,0.00042999,14]
[341058092,1730308288762,-690.36,0.00042999,14]
[341058093,1730308288772,-690.36,0.00042999,14]
[341058094,1730308288782,-690.36,0.00042999,14]
[341058095,1730308288791,-690.36,0.00042999,14]
[341058096,1730308288801,-690.36,0.00042999,14]
[341058097,1730308288810,-690.37403215,0.00042999,14]
[341058098,1730308288819,-500.0,0.00042999,14]
[341058099,1730308288828,-500.0,0.00042999,14]
[341058100,1730308288838,-500.0,0.00042999,14]
[341058101,1730308288847,-500.0,0.00042999,14]
[341058102,1730308288857,-338.60664067,0.00042999,14]
[341058103,1730308288866,-500.0,0.00042999,14]
[341058104,1730308288875,-500.0,0.00042999,14]
[341058105,1730308288885,-500.0,0.00042999,14]
[341058106,1730308288894,-500.0,0.00042999,14]
[341058107,1730308288904,-500.0,0.00042999,14]
[341058108,1730308288914,-784.32,0.00042999,14]
[341058109,1730308288923,-161.26807662,0.00042999,14]
[341058110,1730308288937,-784.32,0.00042999,14]
[341058111,1730308288947,-784.32,0.00042999,14]
[341058112,1730308288956,-784.32,0.00042999,14]
[341058113,1730308288965,-784.32,0.00042999,14]
[341058114,1730308288975,-784.32,0.00042999,14]
[341058115,1730308288984,-784.32,0.00042999,14]
[341058116,1730308288994,-784.32,0.00042999,14]
[341058117,1730308289004,-784.32,0.00042999,14]
[341058118,1730308289013,-784.36996452,0.00042999,14]
[341058119,1730308289022,-544.51,0.00042999,14]
[341058120,1730308289032,-544.51,0.00042999,14]
[341058121,1730308289041,-544.51,0.00042999,14]
[341058122,1730308289134,-544.51,0.00042999,14]
[341058123,1730308289145,-544.51,0.00042999,14]
[341058124,1730308289154,-544.51,0.00042999,14]
[341058125,1730308289164,-544.73141996,0.00042999,14]
[341058126,1730308289174,-500.0,0.00042999,14]
[341058127,1730308289186,-307.26876693,0.00042999,14]
[341058128,1730308289195,-151.0,0.00042999,14]
[341058129,1730308289205,-155.69342,0.00042999,14]
[341058130,1730308289214,-831.19,0.00042999,14]
[341058131,1730308289223,-831.19,0.00042999,14]
[341058132,1730308289232,-831.19,0.00042999,14]
[341058133,1730308289242,-831.19,0.00042999,14]
[341058134,1730308289251,-831.19,0.00042999,14]
[341058135,1730308289260,-831.19,0.00042999,14]
[341058136,1730308289269,-831.3336919,0.00042999,14]
[341058137,1730308289279,-1923.98,0.00042999,14]
[341058138,1730308289288,-1923.98,0.00042999,14]
[341058139,1730308289298,-1923.98,0.00042999,14]
[341058140,1730308289307,-1923.98,0.00042999,14]
[341058141,1730308289316,-1923.98,0.00042999,14]
[341058142,1730308289326,-1923.98,0.00042999,14]
[341058143,1730308289335,-1924.14342928,0.00042999,14]
[341058144,1730308289344,-2664.49,0.00042999,14]
[341058145,1730308289353,-2664.49,0.00042999,14]
[341058146,1730308289362,-2664.49,0.00042999,14]
[341058147,1730308289371,-2664.49,0.00042999,14]
[341058148,1730308289381,-2664.49,0.00042999,14]
[341058149,1730308289390,-2664.49,0.00042999,14]
[341058150,1730308289400,-2664.50861282,0.00042999,14]
[341058151,1730308289412,-500.0,0.00042999,14]
[341058152,1730308289422,-334.17782966,0.00042999,14]
[341058153,1730308289432,-677.16,0.00042999,14]
[341058154,1730308289442,-677.16,0.00042999,14]
[341058155,1730308289451,-677.16,0.00042999,14]
[341058156,1730308289461,-677.16,0.00042999,14]
[341058157,1730308289470,-677.16,0.00042999,14]
[341058158,1730308289481,-677.16,0.00042999,14]
[341058159,1730308289490,-677.27626233,0.00042999,14]
[341058160,1730308289499,-500.0,0.00042999,14]
[341058161,1730308289509,-198.31604377,0.00042999,14]
[341058162,1730308289518,-670.37,0.00042999,14]
[341058163,1730308289527,-670.37,0.00042999,14]
[341058164,1730308289537,-670.37,0.00042999,14]
[341058165,1730308289546,-670.37,0.00042999,14]
[341058166,1730308289555,-670.37,0.00042999,14]
[341058167,1730308289565,-670.37,0.00042999,14]
[341058168,1730308289574,-670.5662793,0.00042999,14]
[341058169,1730308289584,-158.974698,0.00042999,14]
[341058170,1730308289593,-158.974698,0.00042999,14]
[341058171,1730308289602,-158.974698,0.00042999,14]
[341058172,1730308289611,-158.974698,0.00042999,14]
[341058173,1730308289620,-794.07,0.00042999,14]
[341058174,1730308289629,-794.07,0.00042999,14]
[341058175,1730308289638,-794.07,0.00042999,14]
[341058176,1730308289647,-794.07,0.00042999,14]
[341058177,1730308289656,-794.07,0.00042999,14]
[341058178,1730308289668,-794.07,0.00042999,14]
[341058179,1730308289678,-794.2750685,0.00042999,14]
[341058180,1730308289687,-1298.55,0.00042999,14]
[341058181,1730308289697,-1298.55,0.00042999,14]
[341058182,1730308289708,-1298.55,0.00042999,14]
[341058183,1730308289719,-1298.55,0.00042999,14]
[341058184,1730308289729,-1298.55,0.00042999,14]
[341058185,1730308289739,-1298.55,0.00042999,14]
[341058186,1730308289754,-1298.69905113,0.00042999,14]
[341058187,1730308289776,-411.530528,0.00042999,14]
[341058188,1730308289794,-411.530528,0.00042999,14]
[341058189,1730308289815,-411.530528,0.00042999,14]
[341058190,1730308289835,-411.530528,0.00042999,14]
[341058191,1730308289854,-787.24,0.00042999,14]
[341058192,1730308289873,-787.24,0.00042999,14]
[341058193,1730308289889,-787.24,0.00042999,14]
[341058194,1730308289908,-787.24,0.00042999,14]
[341058195,1730308289927,-787.24,0.00042999,14]
[341058196,1730308289949,-787.24,0.00042999,14]
[341058197,1730308289963,-787.41584695,0.00042999,14]
[341058198,1730308289982,-500.0,0.00042999,14]
[341058199,1730308289998,-500.0,0.00042999,14]
[341058200,1730308290012,-500.0,0.00042999,14]
[341058201,1730308290028,-279.98955806,0.00042999,14]
[341058202,1730308290042,-971.52,0.00042999,14]
[341058203,1730308290057,-971.52,0.00042999,14]
[341058204,1730308290071,-971.52,0.00042999,14]
[341058205,1730308290087,-971.52,0.00042999,14]
[341058206,1730308290101,-971.52,0.00042999,14]
[341058207,1730308290116,-971.52,0.00042999,14]
[341058208,1730308290131,-971.58066707,0.00042999,14]
[341058209,1730308290147,-1461.8,0.00042999,14]
[341058210,1730308290162,-1461.8,0.00042999,14]
[341058211,1730308290177,-1461.8,0.00042999,14]
[341058212,1730308290194,-1461.8,0.00042999,14]
[341058213,1730308290208,-1461.8,0.00042999,14]
[341058214,1730308290223,-1461.8,0.00042999,14]
[341058215,1730308290237,-1461.97730674,0.00042999,14]
[341058216,1730308290252,-1666.66,0.00042999,14]
[341058217,1730308290267,-1666.66,0.00042999,14]
[341058218,1730308290283,-1666.66,0.00042999,14]
[341058219,1730308290298,-1666.66,0.00042999,14]
[341058220,1730308290313,-1666.66,0.00042999,14]
[341058221,1730308290328,-1666.66,0.00042999,14]
[341058222,1730308290344,-1666.71897014,0.00042999,14]
[341058223,1730308290359,-733.58,0.00042999,14]
[341058224,1730308290373,-733.58,0.00042999,14]
[341058225,1730308290388,-733.58,0.00042999,14]
[341058226,1730308290404,-733.58,0.00042999,14]
[341058227,1730308290419,-733.58,0.00042999,14]
[341058228,1730308290438,-733.58,0.00042999,14]
[341058229,1730308290455,-733.75160731,0.00042999,14]
[341058230,1730308290470,-572.16,0.00042999,14]
[341058231,1730308290487,-572.16,0.00042999,14]
[341058232,1730308290502,-572.16,0.00042999,14]
[341058233,1730308290516,-572.16,0.00042999,14]
[341058234,1730308290532,-572.1808316,0.00042999,14]
[341058235,1730308290546,-715.57,0.00042999,14]
[341058236,1730308290560,-715.57,0.00042999,14]
[341058237,1730308290576,-715.57,0.00042999,14]
[341058238,1730308290594,-715.57,0.00042999,14]
[341058239,1730308290610,-715.57,0.00042999,14]
[341058240,1730308290625,-715.57,0.00042999,14]
[341058241,1730308290641,-715.68100183,0.00042999,14]
[341058242,1730308290655,-1155.51,0.00042999,14]
[341058243,1730308290671,-1155.51,0.00042999,14]
[341058244,1730308290684,-1155.51,0.00042999,14]
[341058245,1730308290699,-1155.51,0.00042999,14]
[341058246,1730308290714,-1155.52489734,0.00042999,14]
[341058247,1730308290729,-151.0,0.00042999,14]
[341058248,1730308290744,-751.97,0.00042999,14]
[341058249,1730308290760,-751.97,0.00042999,14]
[341058250,1730308290775,-751.97,0.00042999,14]
[341058251,1730308290914,-1599.66,0.00042999,14]
[341058252,1730308290926,-751.97,0.00042999,14]
[341058253,1730308290935,-751.97,0.00042999,14]
[341058254,1730308290945,-751.97,0.00042999,14]
[341058255,1730308290955,-752.1984037,0.00042999,14]
[341058256,1730308290965,-1599.66,0.00042999,14]
[341058257,1730308290974,-1599.66,0.00042999,14]
[341058258,1730308290984,-1599.66,0.00042999,14]
[341058259,1730308290993,-1599.8,0.00042999,14]
[341058260,1730308291003,-1069.68,0.00042999,14]
[341058261,1730308291012,-1025.2,0.00042999,14]
[341058262,1730308291022,-1069.68,0.00042999,14]
[341058263,1730308291032,-1025.2,0.00042999,14]
[341058264,1730308291041,-1069.68,0.00042999,14]
[341058265,1730308291051,-1025.2,0.00042999,14]
[341058266,1730308291060,-513.46,0.00042999,14]
[341058267,1730308291070,-1069.68,0.00042999,14]
[341058268,1730308291079,-513.46,0.00042999,14]
[341058269,1730308291089,-1025.2,0.00042999,14]
[341058270,1730308291099,-1069.81758833,0.00042999,14]
[341058271,1730308291109,-513.46,0.00042999,14]
[341058272,1730308291119,-1025.2,0.00042999,14]
[341058273,1730308291127,-513.46,0.00042999,14]
[341058274,1730308291137,-1025.2,0.00042999,14]
[341058275,1730308291146,-1025.42462477,0.00042999,14]
[341058276,1730308291155,-513.46923485,0.00042999,14]
[341058277,1730308291165,-2973.95,0.00042999,14]
[341058278,1730308291175,-2973.95,0.00042999,14]
[341058279,1730308291188,-2973.95,0.00042999,14]
[341058280,1730308291198,-2973.95,0.00042999,14]
[341058281,1730308291207,-2974.06972312,0.00042999,14]
[341058282,1730308291216,-641.47,0.00042999,14]
[341058283,1730308291226,-641.47,0.00042999,14]
[341058284,1730308291235,-641.47,0.00042999,14]
[341058285,1730308291244,-641.47,0.00042999,14]
[341058286,1730308291254,-641.63145082,0.00042999,14]
[341058287,1730308291263,-581.05,0.00042999,14]
[341058288,1730308291273,-581.05,0.00042999,14]
[341058289,1730308291282,-581.05,0.00042999,14]
[341058290,1730308291291,-581.05,0.00042999,14]
[341058291,1730308291301,-581.05,0.00042999,14]
[341058292,1730308291310,-581.05,0.00042999,14]
[341058293,1730308291319,-581.16169894,0.00042999,14]
[341058294,1730308291329,-537.01,0.00042999,14]
[341058295,1730308291339,-537.01,0.00042999,14]
[341058296,1730308291348,-537.01,0.00042999,14]
[341058297,1730308291358,-537.01,0.00042999,14]
[341058298,1730308291368,-537.13714543,0.00042999,14]
[341058299,1730308291378,-319.278894,0.00042999,14]